Cogmind - Beta 12 @@@ ROGUE MODE // 2023.06.18 @ 20:34:03 Player: deezy Result: Destroyed by Y-45 Defender with Heavy Assault Rifle Performance ------------- Evolutions (1) 500 Regions Visited (2) 400 Robots Destroyed (7) 35 Value Destroyed (190) 190 Prototype IDs (0) 0 Alien Tech Used (0) 0 Bonus (0) 0 TOTAL SCORE: 1125 Bonus ------- None Cogmind --------- Core Integrity 0/400 Matter 229/300 Energy 100/100 System Corruption 0% Temperature Cool (9) Movement Core (1500) Ox29 Location -9/Materials Parts ------- > --- POWER (1) -------- (None) > --- PROPULSION (3) --- (None) > --- UTILITY (3) ------ Medium Storage Unit Huge Storage Unit > --- WEAPON (2) ------- (None) > --- INVENTORY (25) --- Ion Engine Improved Ion Engine Light Cannon Datajack Peak State ------------ > --- POWER ------------ Ion Engine > --- PROPULSION ------- Flight Unit Flight Unit Flight Unit > --- UTILITY ---------- Improved Heat Sink Medium Storage Unit Medium Storage Unit > --- WEAPON ----------- Small Laser Assault Rifle > --- INVENTORY -------- Ion Engine Hover Unit Medium Storage Unit Light Cannon Datajack [Rating: 11] Favorites ----------- Power Ion Engine Engine Ion Engine Propulsion Flight Unit Leg Aluminum Leg Hover Unit Hover Unit Flight Unit Flight Unit Utility Medium Storage Unit Device Improved Heat Sink Storage Medium Storage Unit Weapon Small Laser Energy Gun Small Laser Ballistic Gun Assault Rifle Build | -11 -10 -9 ------- Run | Jun Mat Mat Slots Evolved 2 | . . 2 Power . | . . . Propulsion 1 | . . 1 Utility 1 | . . 1 Weapon . | . . . Parts Attached 11 | . 7 4 Power 1 | . 1 . Engine 1 | . 1 . Core . | . . . Reactor . | . . . Propulsion 5 | . 3 2 Treads . | . . . Leg . | . . . Wheel . | . . . Hover 1 | . . 1 Flight 4 | . 3 1 Utility 4 | . 2 2 Device 1 | . 1 . Storage 3 | . 1 2 Processor . | . . . Hackware . | . . . Protection . | . . . Artifact . | . . . Weapon 1 | . 1 . Energy Gun . | . . . Energy Cannon . | . . . Ballistic Gun 1 | . 1 . Ballistic Cannon . | . . . Launcher . | . . . Special Weapon . | . . . Impact Weapon . | . . . Slashing Weapon . | . . . Piercing Weapon . | . . . Special Melee Weapon . | . . . Unidentified Prototypes . | . . . Parts Lost 8 | . . 8 Power 1 | . . 1 Propulsion 4 | . . 4 Utility 1 | . . 1 Weapon 2 | . . 2 Highest Loss Streak 4 | . . 4 To Critical Strikes . | . . . Average Slot Usage (%) 82 | . 92 69 Engine 12 | . 14 10 Leg 11 | . 19 . Hover 2 | . . 6 Flight 10 | . 8 14 Device 5 | . 7 2 Storage 17 | . 14 22 Energy Gun 12 | . 14 9 Ballistic Gun 9 | . 14 3 Naked Turns . | . . . Heaviest Build 99 | 13 19 99 Greatest Support 20 | 20 20 12 Greatest Overweight (x) 24 | . 2 24 Average Overweight (x) 1 | . . 11 Largest Inventory Capacity 25 | 8 10 25 Average Capacity 15 | 8 8 24 Most Carried 10 | 6 10 6 Average Carried 5 | 6 6 4 Final Capacity 25 | 8 10 25 Final Carried 7 | 6 7 4 Class Distribution -------------------- 76% | Mutant 23% | Scavenger-Mutant Dominant Class ---------------- Mutant | -10/Materials Mutant | -9/Materials Resources | -11 -10 -9 ----------- Run | Jun Mat Mat Matter Collected 252 | 200 52 . Remotely . | . . . Salvage Created 227 | . 172 55 Parts 21 | . 17 4 Haulers Intercepted . | . . . Recyclers Shooed . | . . . Parts Field Recycled . | . . . Retrieved Matter . | . . . Parts Self-Destructed . | . . . Prevented . | . . . Kills | -11 -10 -9 ------- Run | Jun Mat Mat Combat Hostiles Destroyed 7 | . 6 1 Guns 7 | . 6 1 Classes Destroyed 3 | . 2 1 Swarmer 3 | . 3 . Grunt 3 | . 3 . Sentry 1 | . . 1 Best Kill Streak 3 | . 3 1 Combat Bots Only 3 | . 3 1 Max Kills in Single Turn 2 | . 2 1 Gunslinging 1 | . 1 . Exploded . | . . . Melee . | . . . Uniques/NPCs Destroyed . | . . . Combat | -11 -10 -9 -------- Run | Jun Mat Mat Damage Taken 1061 | . 201 860 Core 422 | . 16 406 Absorbed by Shields . | . . . Core Remaining (%) 96 | 100 93 . Volleys Fired 17 | . 14 3 Largest 2 | . 2 2 Hottest 60 | . 60 60 Shots Fired 31 | . 27 4 Gun 31 | . 27 4 Cannon . | . . . Launcher . | . . . Special . | . . . Kinetic 15 | . 14 1 Thermal 16 | . 13 3 Explosive . | . . . Electromagnetic . | . . . Robot Hit Streak 10 | . 10 3 Robot Miss Streak 2 | . 2 1 Penetration Max . | . . . Secondary Targets 2 | . 2 . Max Gunslinging Chain 1 | . 1 . Shots Hit Robots 22 | . 19 3 Core Hits 12 | . 10 2 Critical Kills . | . . . Critical Parts Destroyed 1 | . 1 . Critical Strikes 1 | . 1 . Destroy 1 | . 1 . Melee Attacks . | . . . Impact . | . . . Slashing . | . . . Piercing . | . . . Sneak Attacks . | . . . Combat Hostiles . | . . . Follow-up Attacks . | . . . Damage Inflicted 268 | . 223 45 Guns 267 | . 223 44 Cannons . | . . . Explosions . | . . . Melee . | . . . Ramming 1 | . . 1 Kinetic 141 | . 131 10 Thermal 126 | . 92 34 Explosive . | . . . Electromagnetic . | . . . Impact . | . . . Slashing . | . . . Piercing . | . . . Highest Corruption 5 | . 5 . Average Corruption 4 | . 4 . Corruption Purged . | . . . Corruption Blocked . | . . . Effects 12 | . 12 . Message Errors 4 | . 4 . Matter Fused 2 | . 2 . Energy Discharges 3 | . 3 . Data Loss (minor) 1 | . 1 . Alerts 1 | . 1 . Weapon Failures 1 | . 1 . Overload Shots . | . . . Overflow Damage . | . . . Projectiles . | . . . Explosions . | . . . Melee . | . . . Knockbacks . | . . . Impact . | . . . Kinetic . | . . . Secondary . | . . . Self-Inflicted Damage . | . . . Shots . | . . . Rammed 2 | . . 2 Targets Rammed 2 | . . 2 Kicked . | . . . Crushed . | . . . Highest Temperature 30 | . 30 10 Average Temperature 11 | . 13 6 Received Heat Transfer 306 | . 51 255 Siege Activations . | . . . Robots Corrupted . | . . . Combat Hostiles . | . . . Parts Fried . | . . . Impact Corruptions . | . . . Robots Melted . | . . . Combat Hostiles . | . . . Parts Melted . | . . . Heat Transferred 275 | . 200 75 Parts Sabotaged . | . . . Parts Stolen . | . . . Parts Stripped . | . . . Power Chain Reactions . | . . . Missiles Intercepted . | . . . Alert | -11 -10 -9 ------- Run | Jun Mat Mat Peak Influence 165 | . 165 45 Initial 8 | . . 8 Average 38 | . 53 19 Maximum Alert Level . | . . . Low Security (%) 100 | 100 100 100 Level 1 . | . . . Level 2 . | . . . Level 3 . | . . . Level 4 . | . . . Level 5 . | . . . High Security . | . . . Max Security . | . . . Squads Dispatched 1 | . 1 . Investigation . | . . . Extermination . | . . . Reinforcement 1 | . 1 . Assault . | . . . Garrison . | . . . Intercept . | . . . Searches Triggered . | . . . Construction Impeded . | . . . Haulers Reinforced . | . . . Active Scanning Responses . | . . . Cargo Convoy Interrupts . | . . . Stealth | -11 -10 -9 --------- Run | Jun Mat Mat Distress Signals . | . . . Communications Jammed . | . . . Distress Signals . | . . . Times Spotted 12 | . 9 3 Peak Tracking Total 4 | . 4 1 Tactical Retreats . | . . . Traps | -11 -10 -9 ------- Run | Jun Mat Mat Traps Triggered 2 | . 2 . Indirectly . | . . . Trap Hack Attempts . | . . . Triggered . | . . . Disarmed . | . . . Reprogrammed . | . . . Reused . | . . . Traps Extracted . | . . . Installed . | . . . Triggered . | . . . Machines | -11 -10 -9 ---------- Run | Jun Mat Mat Machines Disabled . | . . . Max in Single Turn . | . . . Machines Repaired . | . . . Machines Sabotaged . | . . . Overloaded Fab Kills . | . . . Hacking | -11 -10 -9 --------- Run | Jun Mat Mat Machines Accessed 3 | . 3 . Terminals 2 | . 2 . Fabricators . | . . . Repair Stations . | . . . Recycling Units 1 | . 1 . Scanalyzers . | . . . Garrison Access . | . . . Total Hacks 7 | . 7 . Successful 4 | . 4 . Failed 3 | . 3 . Catastrophic . | . . . Database Lockouts . | . . . Manual . | . . . Terminals 4 | . 4 . Fabricators . | . . . Repair Stations . | . . . Recycling Units 3 | . 3 . Scanalyzers . | . . . Garrison Access . | . . . Terminal Hacks 2 | . 2 . Record 1 | . 1 . Zone Layout 1 | . 1 . Fabricator Hacks . | . . . Repair Station Hacks . | . . . Recycling Unit Hacks 2 | . 2 . Recycle Component 2 | . 2 . Scanalyzer . | . . . Garrison Access Hacks . | . . . Unauthorized Hacks . | . . . Terminals . | . . . Fabricators . | . . . Repair Stations . | . . . Recycling Units . | . . . Scanalyzers . | . . . Garrison Access . | . . . Data Cores Recovered . | . . . Used . | . . . Hacking Detections 2 | . 2 . Full Trace Events 1 | . 1 . Feedback Events 1 | . 1 . Corruption 1 | . 1 . Feedback Blocked . | . . . Robot Schematics Acquired . | . . . Robots Built . | . . . Authchips . | . . . Time . | . . . Total Robot Build Rating . | . . . Part Schematics Acquired . | . . . Parts Built . | . . . Authchips . | . . . Time . | . . . Total Part Build Rating . | . . . Parts Repaired . | . . . Time . | . . . Parts Recycled 2 | . 2 . Recycled Matter . | . . . Retrieved Matter . | . . . Retrieved Components . | . . . Parts Scanalyzed . | . . . Part Schematics Acquired . | . . . Parts Damaged . | . . . Bothacking | -11 -10 -9 ------------ Run | Jun Mat Mat Used RIF Installer . | . . . Robots Hacked . | . . . Non-combat . | . . . Combat . | . . . Robot Hacks Applied . | . . . Relay Couplers Released . | . . . Fabnet Peak Effective % . | . . . Robots Rewired . | . . . Allies Hacked . | . . . Hacks Repelled . | . . . Allies | -11 -10 -9 -------- Run | Jun Mat Mat Total Allies . | . . . Largest Group . | . . . Highest-Rated Group . | . . . Highest-Rated Ally . | . . . Total Orders . | . . . Ally Attacks . | . . . Total Damage . | . . . Kills . | . . . Allies Corrupted . | . . . Allies Melted . | . . . Intel | -11 -10 -9 ------- Run | Jun Mat Mat Robot Analysis Total . | . . . Derelict Logs Recovered . | . . . Drone Launches . | . . . Drone Recoveries . | . . . Exploration | -11 -10 -9 ------------- Run | Jun Mat Mat Turns Passed 906 | 15 505 386 Spaces Moved 375 | 13 320 42 Core . | . . . Treads . | . . . Legs 261 | 13 248 . Wheels . | . . . Hover 23 | . . 23 Flight 91 | . 72 19 Fastest Speed 120 | 120 120 194 Average Speed 214 | 120 137 829 Slowest Speed 1960 | 120 197 1960 Overloaded Moves . | . . . Propulsion Burnouts . | . . . Robots Hopped . | . . . Cave-ins Triggered . | . . . Exploration Rate (%) 22 | 2 57 7 Regions Visited 2 Branch Regions . Pre-discovered Areas . | . . . Known Exits Taken . | . . . Unknown Exits Taken 2 | 1 1 . Scrap Searched . | . . . Spaces Dug . | . . . Terrain Destroyed . | . . . Melee . | . . . Projectile . | . . . AOE . | . . . Terrain Rammed . | . . . Walls Destroyed . | . . . Machines Disabled . | . . . Actions | -11 -10 -9 --------- Run | Jun Mat Mat Total 427 | 12 360 55 Wait . | . . . Move 373 | 12 319 42 Hop . | . . . Pick Up 14 | . 12 2 Fast Attach . | . . . Attach 4 | . 1 3 Detach . | . . . Swap 7 | . 6 1 Drop 10 | . 8 2 Fire 17 | . 14 3 Melee . | . . . Ram 2 | . . 2 Kick . | . . . Crush . | . . . Escape Stasis . | . . . Rewire . | . . . Trap . | . . . Miscellaneous . | . . . Route ------- -11/Junkyard -10/Materials (discovered 3 exits: [*Mat x2] / [*Min]) -9/Materials History --------- Turn | Location | Event 1 | -11/Junkyard | Discovered new exit (range 3) 16 | -11/Junkyard | Entered Materials 213 | -10/Materials | Discovered new exit (range 10) 274 | -10/Materials | Discovered new exit (range 11) 301 | -10/Materials | Build established: Mutant 491 | -10/Materials | Discovered new exit (range 15) 521 | -10/Materials | Entered another Materials area 521 | -9/Materials | Evolved 2 slots: Propulsion x1, Utility x1 883 | -9/Materials | Core integrity fell below 50% 896 | -9/Materials | Core integrity fell below 20% 907 | -9/Materials | Destroyed by Y-45 Defender with Heavy Assault Rifle Last Messages --------------- 00874_ Ion Engine destroyed. 00882_ Fusion Modulator explodes. 00882_ Flight Unit destroyed. 00882_ A-02 Transporter destroyed. 00883_ Hover Unit destroyed. 00884_ Slammed into Y-45 Defender. 00896_ U-05 Engineer lays Concrete. 00898_ U-05 Engineer builds a Wall. 00898_ U-05 Engineer lays Concrete. 00899_ U-05 Engineer builds a Wall. 00899_ U-05 Engineer lays Concrete. 00899_ Slammed into Y-45 Defender. 00900_ U-05 Engineer builds a Wall. 00901_ U-05 Engineer builds a Door. 00901_ U-05 Engineer builds a Wall. 00904_ U-05 Engineer lays Concrete. 00904_ U-05 Engineer builds a Wall. 00905_ U-05 Engineer lays Concrete. 00906_ U-05 Engineer builds a Wall. 00907_ U-05 Engineer lays Concrete. Map ----- +----------------------------------------------------+ | ?????????????????????????????? | | ?????????????????????????????? | | ?????????????????????????????? | | ?????????????????????????????? | | ?????????????????????????????? | | ?????????????????????????????? | | ?????????????????????????????? | | ?????????????????????????????? | | ?????????????????????????????? | | ?????????????????????????????? | | ?????????????????????????????? | | ?????????????????????????????? | | ?????????????????? ?????????? | | ????????????????+ ??????? | | ????????????????# ?????## | | ????????????????# ##### # | | ????????????????# # # | | ?#??????????????# # # | | ?# ?????????????# # # | | ?# ????????????# # // # | | ?# ???????????# # / ; | | ?# ??????????? # ; | | ## #########??? #u ; | | #??###/##uu ; | | #??# u#Y ; | | #??# ;!@ ; | | ?###+######+####### = ;%! ; | | ?????????# # ; * ; | | ?????????# ## ;;;;;;;; | | ?????????# !## ## # | | ?????????# !## ## # | | ?????????# ## ## """ # | | ?????????# ## ## """ # | | ?????????# # # """ # | | ?????????# %+ # # | | ?????????# # + """ # | | ?????????##+####### # """ # | | ??????????????????## ## """ # | | ???????????????????# ## # | | ???????????????????# ## # | | ???????????????????# ## # | | ???????????????????# ######## | | ???????????????????+ #??????? | | ???????????????????# #??????? | | ???????????????????# #??????? | | ???????????????????# #??????? | | ???????????????????# #??????? | | ??????????????????? #??????? | | ??????????????????? #??????? | | ???????????????????#+#???????? | +----------------------------------------------------+ Best States ------------- Heat Dissipation 42 Energy Generation 10 Energy Capacity 250 Matter Stores 300 Matter Capacity 300 Sight Range 16 Terrain Scan Density 10 Evasion (%) 55 Item Schematics ----------------- None Robot Schematics ------------------ None Fabricated ------------ Nothing Alien Tech Used ----------------- None Achievements -------------- None Challenges ------------ None Game ------ Seed ContainmentCoilRay Manual? 0 Play Time 00:12:05 Cumulative 5.8 hours Start 2023.06.18 @ 20:23:48 End 2023.06.18 @ 20:34:03 Sessions 1 Manual Loads 0 Difficulty Rogue Special Mode None Game No. 15 Rogue 15 Adventurer 0 Explorer 0 Win Type - Total 0 Types 0/0/0/0/0/0/0/0/0 Lore% 15 Gallery% 10 Achievement% 12 Wizard Run 0 Options --------- ASCII 0 Keyboard 1 Movement Numpad Keybinds 0 Fullscreen 1 Font 24/Proggy Map View 76x50 Tactical HUD 1 Map Filters NONE Filters NONE Steam 1 RUN: 518aa64c-d3ce-4e8a-8e0c-086e66c40e8c